bitfinex/quotes_SOLUSD_20260203
["timestamp","ask_amount","ask_price","bid_price","bid_amount"]
[1770150822610,11.9142687,101.07,101.02,2.77103658]
[1770150822813,2.89893771,101.09,101.02,14.68530528]
[1770150823038,11.9142687,101.07,101.02,14.68530528]
[1770150823534,2.89893771,101.12,101.03,2.77103658]
[1770150823835,11.9142687,101.09,101.04,14.68530528]
[1770150824025,11.9142687,101.08,101.04,2.77103658]
[1770150824221,11.9142687,101.07,101.02,14.68530528]
[1770150824536,2.89893771,101.09,101.02,14.68530528]
[1770150824832,11.9142687,101.06,101.02,2.77103658]
[1770150825135,11.9142687,101.06,100.98,24.7566024]
[1770150825136,11.9142687,101.03,100.98,14.68530528]
[1770150825347,11.9142687,101.04,100.99,14.68530528]
[1770150825649,11.9142687,101.06,101.01,11.9142687]
[1770150825810,11.9142687,101.03,100.99,11.9142687]
[1770150826014,11.9142687,101.03,100.98,14.68530528]
[1770150826224,11.9142687,101.05,101.0,11.9142687]
[1770150826423,11.9142687,101.04,100.99,11.9142687]
[1770150826727,2.89893771,101.06,100.99,11.9142687]
[1770150826728,11.9142687,101.06,101.0,2.77103658]
[1770150827121,14.81320641,101.07,101.02,11.9142687]
[1770150827514,11.9142687,101.06,101.01,14.68530528]
[1770150827735,11.9142687,101.05,101.0,11.9142687]
[1770150827948,11.9142687,101.05,101.0,2.77103658]
[1770150828114,11.9142687,101.04,100.99,11.9142687]
[1770150828436,11.91525729,101.08,101.03,11.91525729]
[1770150828644,11.91525729,101.07,101.02,14.68629387]
[1770150828817,11.91525729,101.05,101.0,14.68629387]
[1770150829017,11.91525729,101.02,100.97,2.77103658]
[1770150829328,2.89893771,101.04,100.97,2.77103658]
[1770150829329,11.91525729,101.01,100.97,2.77103658]
[1770150829520,11.91525729,100.98,100.93,14.88629387]
[1770150830243,11.91525729,100.99,100.94,11.91525729]
[1770150830434,11.91525729,100.99,100.93,12.87872802]
[1770150830630,11.91525729,100.99,100.94,11.91525729]
[1770150830835,11.91525729,101.01,100.96,11.91525729]
[1770150831025,11.91525729,101.03,100.98,11.91525729]
[1770150831421,14.76136505,101.04,100.99,11.91525729]
[1770150831614,24.73105187,101.09,101.0,11.91525729]
[1770150831917,27.5,101.11,100.98,2.90090626]
[1770150831918,11.91525729,101.05,100.98,2.90090626]
[1770150832126,11.91525729,101.05,101.0,11.91525729]
[1770150832644,11.91525729,101.05,100.99,2.90090626]
[1770150832939,11.91525729,101.03,100.97,2.90090626]
[1770150833123,11.91525729,101.03,100.98,11.91525729]
[1770150833322,11.91525729,101.02,100.97,14.81616355]
[1770150834340,11.91525729,101.03,100.98,11.91525729]
[1770150834546,27.36,101.08,100.97,2.90090626]
[1770150834547,2.75916926,101.1,101.0,2.74198804]
[1770150834732,14.67442655,101.07,101.0,2.74198804]
[1770150835041,14.67442655,101.09,101.04,11.91525729]
[1770150835233,6.37963784,101.08,101.04,11.91525729]
[1770150835426,2.75916926,101.09,101.05,11.91525729]
[1770150835623,9.88947695,101.12,100.97,113.89499974]
[1770150835624,14.67442655,101.11,101.06,11.91525729]
[1770150835821,6.42552022,101.1,101.07,11.91525729]
[1770150836035,6.41536446,101.09,101.07,11.91525729]
[1770150836229,11.91525729,101.09,101.05,2.74198804]
[1770150836442,11.91525729,101.1,101.06,11.91525729]
[1770150836641,6.42659021,101.09,101.05,11.91525729]
[1770150836946,11.91525729,101.13,101.08,11.91525729]
[1770150837131,39.53949062,101.17,101.03,2.74198804]
[1770150837132,9.26042127,101.12,101.03,2.74198804]
[1770150837323,44.89856888,101.17,101.07,11.91525729]
[1770150837324,6.50125201,101.11,101.07,11.91525729]
[1770150837525,5.36086188,101.17,101.1,11.91525729]
[1770150837526,11.91525729,101.16,101.1,11.91525729]
[1770150837834,6.56275818,101.15,101.11,2.74198804]
[1770150838034,11.91525729,101.18,101.13,11.91525729]
[1770150838245,6.61261719,101.17,101.13,2.74198804]
[1770150838431,11.91525729,101.17,101.11,2.74198804]
[1770150838744,11.91525729,101.15,101.1,11.91525729]
[1770150838935,11.91525729,101.14,101.09,14.65724533]
[1770150839271,11.91525729,101.15,101.1,11.91525729]
[1770150839457,9.88243489,101.19,101.1,11.91525729]
[1770150839631,11.91525729,101.14,101.11,2.74198804]
[1770150839830,11.91525729,101.15,101.11,2.74198804]
[1770150840031,11.91525729,101.16,101.12,2.74198804]
[1770150840343,11.91525729,101.21,101.15,14.65724533]
[1770150840544,0.1,101.24,101.18,2.74198804]
[1770150840745,11.91525729,101.23,101.18,2.74198804]
[1770150840954,2.75916926,101.18,101.1,2.74198804]
[1770150841247,2.75916926,101.19,101.1,2.74198804]
[1770150841450,2.75916926,101.17,101.1,2.74198804]
[1770150841648,11.91525729,101.15,101.1,2.74198804]
[1770150841851,11.91525729,101.13,101.11,2.74198804]
[1770150842049,11.91525729,101.12,101.08,2.74198804]
[1770150842346,11.91525729,101.11,101.08,2.74198804]
[1770150842552,2.75916926,101.16,101.09,2.74198804]
[1770150842726,11.91525729,101.16,101.11,2.74198804]
[1770150842928,11.91525729,101.16,101.05,39.5836946]
[1770150842929,11.91525729,101.14,101.09,2.74198804]
[1770150843232,11.91525729,101.14,101.05,39.5836946]
[1770150843233,11.91525729,101.1,101.05,2.74198804]
[1770150843556,32.60086188,101.19,100.98,39.6087324]
[1770150843557,11.91525729,101.06,101.01,2.74198804]
[1770150843854,2.75916926,101.08,101.0,12.64261336]
[1770150844150,42.49130837,101.11,101.0,12.64261336]
[1770150844151,2.75916926,101.07,101.0,2.74198804]
[1770150844455,11.91525729,101.06,101.01,12.6419894]
[1770150844641,2.75916926,101.07,101.01,12.6419894]
[1770150844642,11.91525729,101.07,101.02,2.74198804]
[1770150844836,2.75916926,101.09,101.02,14.65724533]
[1770150844837,11.91525729,101.08,101.02,14.65724533]
[1770150845154,11.91525729,101.04,101.0,2.74198804]
[1770150845455,11.91525729,101.05,101.0,12.64288284]
[1770150845655,2.75916926,101.1,101.01,2.74198804]
[1770150845834,11.91525729,101.07,101.02,2.74198804]
[1770150846033,2.75916926,101.1,101.02,14.65724533]
[1770150846331,2.75916926,101.09,101.02,2.74198804]
[1770150846549,11.91525729,101.07,101.03,2.74198804]
[1770150846739,11.91525729,101.05,101.01,2.74198804]
[1770150846942,11.91525729,101.04,101.01,2.74198804]
[1770150847155,11.91525729,101.03,100.99,2.74198804]
[1770150847351,11.91525729,101.04,101.0,2.74198804]
[1770150848254,11.91525729,101.09,101.03,14.65724533]
[1770150848453,11.91525729,101.07,101.03,2.74198804]
[1770150848843,11.91525729,101.06,101.01,2.74198804]
[1770150849038,11.91525729,101.04,100.99,2.74198804]
[1770150849236,11.91525729,101.02,100.97,2.74198804]
[1770150849437,11.91525729,101.02,100.98,9.90232942]
[1770150849644,11.91525729,101.05,101.01,2.74198804]
[1770150849840,2.75916926,101.07,101.02,14.65724533]
[1770150850063,11.91525729,101.14,101.03,14.65724533]
[1770150850064,14.67442655,101.09,101.03,14.65724533]
[1770150850564,11.91525729,101.04,100.99,2.74198804]
[1770150850751,11.91525729,101.03,100.99,2.74198804]
[1770150850969,11.91525729,101.01,100.97,2.74198804]
[1770150851263,11.91525729,101.04,100.99,12.64395242]
[1770150851565,11.91525729,101.04,100.99,12.64385078]
[1770150851752,11.91525729,101.04,100.99,2.74198804]
[1770150852342,11.91525729,101.02,100.98,2.74198804]
[1770150852669,11.91525729,101.03,100.98,12.64493849]
[1770150853648,11.91525729,101.03,100.99,9.90192548]
[1770150853855,11.91525729,101.03,100.98,12.64449166]
[1770150854049,5.36086188,101.1,100.98,2.74198804]
[1770150854050,11.91525729,101.02,100.98,2.74198804]
[1770150854252,11.91525729,101.0,100.96,2.74198804]
[1770150854579,11.91525729,100.99,100.94,12.64884716]
[1770150854740,11.91525729,100.99,100.95,9.90580272]
[1770150854940,2.75916926,101.07,100.96,2.74198804]
[1770150855137,11.91525729,101.02,100.97,2.74198804]
[1770150855354,11.91525729,101.03,100.97,24.56072819]
[1770150855554,11.91525729,101.02,100.97,12.6454709]
[1770150855847,9.89351355,101.08,100.97,12.6454709]
[1770150855848,11.91525729,101.01,100.97,2.74198804]
[1770150856361,11.91525729,101.02,100.97,9.90378617]
[1770150856664,11.91525729,101.02,100.97,12.64577421]
[1770150857264,2.75916926,101.04,100.97,12.6458773]
[1770150857461,11.91525729,101.04,100.99,2.74198804]
[1770150857766,2.75916926,101.06,100.99,14.65724533]
[1770150857767,11.91525729,101.05,100.99,14.65724533]
[1770150857950,11.91525729,101.03,100.99,2.74198804]
[1770150858661,11.91525729,101.03,100.97,2.74198804]
[1770150858854,2.75916926,101.04,100.97,2.74198804]
[1770150858855,11.91525729,101.02,100.97,2.74198804]
[1770150859254,11.91525729,101.03,100.98,2.74198804]
[1770150859451,11.91525729,101.02,100.98,2.74198804]
[1770150860169,24.73394226,101.08,100.95,12.64767151]
[1770150860170,11.91525729,100.99,100.95,12.64767151]
[1770150860462,2.93182593,101.03,100.96,12.64623411]
[1770150860664,11.91525729,101.0,100.96,2.74198804]
[1770150860855,11.91525729,100.99,100.96,2.74198804]
[1770150861267,2.93182593,101.02,100.96,2.74198804]
[1770150861572,11.91525729,101.0,100.95,2.85604744]
[1770150861867,11.91525729,101.0,100.95,12.76152523]
[1770150862639,11.91525729,101.0,100.96,2.85604744]
[1770150863243,2.93182593,101.02,100.96,2.85604744]
[1770150863442,11.91525729,101.0,100.96,2.85604744]
[1770150863871,2.93182593,101.02,100.96,2.85604744]
[1770150864044,11.91525729,100.98,100.93,12.96344019]
[1770150864252,2.93182593,101.0,100.93,12.96344019]
[1770150864253,11.91525729,100.96,100.93,3.05604744]
[1770150864567,7.85215409,100.97,100.93,12.96384299]
[1770150864866,7.85215409,100.97,100.93,12.96376995]
[1770150865068,7.85215409,100.96,100.93,0.2]
[1770150865260,2.93182593,100.97,100.89,24.97893639]
[1770150865261,10.78398002,100.94,100.89,0.2]
[1770150865464,7.85215409,100.92,100.89,10.11168695]
[1770150865662,10.78398002,100.94,100.89,10.11168695]
[1770150865962,10.78398002,100.93,100.89,0.2]
[1770150866170,10.78398002,100.95,100.89,12.96706168]
[1770150866373,7.85215409,100.97,100.92,2.85604744]
[1770150866584,7.85215409,100.98,100.93,2.85604744]
[1770150866871,2.93182593,100.99,100.94,7.85215409]
[1770150867046,10.78398002,100.98,100.93,2.85604744]
[1770150867246,2.93182593,100.98,100.93,10.70820153]
[1770150867465,10.78398002,101.0,100.94,7.85215409]
[1770150867768,7.85215409,100.99,100.93,10.70820153]
[1770150868151,2.93182593,101.02,100.97,7.85215409]
[1770150868350,47.41273006,101.12,100.98,2.85604744]
[1770150868351,7.85215409,101.05,100.98,2.85604744]
[1770150868548,7.85215409,101.07,101.01,7.85215409]
[1770150868748,7.85215409,101.07,100.96,42.51934901]
[1770150868749,7.85215409,101.09,101.03,7.85215409]
[1770150868960,7.85215409,101.07,101.01,7.85215409]
[1770150869156,34.615765,101.11,101.01,7.85215409]
[1770150869372,7.85215409,101.07,101.01,7.85215409]
[1770150870368,10.78398002,101.07,101.01,7.85215409]
[1770150870750,2.93182593,101.04,100.99,7.85215409]
[1770150870976,10.78398002,101.04,100.99,7.85215409]
[1770150871273,2.93182593,101.04,101.0,7.85215409]
[1770150871479,2.93182593,101.06,101.01,7.85215409]
[1770150871651,10.78398002,101.06,101.0,7.85215409]
[1770150871854,2.93182593,101.06,101.02,7.85215409]
[1770150872071,10.78398002,101.08,101.03,7.85215409]
[1770150872277,2.93182593,101.08,101.04,7.85215409]
[1770150872675,2.93182593,101.07,101.03,7.85215409]
[1770150872980,2.93182593,101.07,101.04,7.85215409]
[1770150873190,2.93182593,101.08,101.02,2.85604744]
[1770150873389,10.78398002,101.08,101.02,2.85604744]
[1770150873592,10.78398002,101.06,101.01,7.85215409]
[1770150873909,2.93182593,101.08,101.01,2.85604744]
[1770150874060,2.93182593,101.08,100.94,94.63090567]
[1770150874061,2.93182593,101.06,100.99,10.70820153]
[1770150874262,7.85215409,101.07,101.02,7.85215409]
[1770150874562,2.93182593,101.1,101.06,7.85215409]
[1770150874759,10.78398002,101.12,101.06,2.85604744]
[1770150874980,10.78398002,101.1,101.04,7.85215409]
[1770150875181,0.1,101.14,101.07,7.85215409]
[1770150875182,2.93182593,101.12,101.07,7.85215409]
[1770150875359,2.93182593,101.1,101.05,7.85215409]
[1770150875568,10.78398002,101.1,101.05,7.85215409]
[1770150875867,10.78398002,101.08,101.02,10.70820153]
[1770150876188,7.85215409,101.06,101.01,7.85215409]
[1770150876482,7.85215409,101.06,101.0,12.75699078]
[1770150876483,2.93182593,101.09,101.03,10.70820153]
[1770150876813,10.78398002,101.12,101.06,10.70820153]
[1770150876986,0.1,101.14,101.02,34.64647085]
[1770150876987,3.03182593,101.14,101.09,7.85215409]
[1770150877200,3.03182593,101.14,101.1,7.85215409]
[1770150877362,3.03182593,101.14,101.08,2.85604744]
[1770150877764,10.78398002,101.13,101.08,2.85604744]
[1770150877960,2.93182593,101.13,101.09,7.85215409]
[1770150878167,0.1,101.14,101.12,7.85215409]
[1770150878373,10.78398002,101.18,101.12,2.85604744]
[1770150878587,2.93182593,101.18,101.14,7.85215409]
[1770150878787,2.93182593,101.17,101.06,2.85604744]
[1770150878972,2.93182593,101.16,101.12,7.85215409]
[1770150879172,7.85215409,101.17,101.06,39.58024976]
[1770150879173,10.78398002,101.14,101.06,2.85604744]
[1770150879362,10.78398002,101.14,101.1,7.85215409]
[1770150879363,2.93182593,101.14,101.1,7.85215409]
[1770150879562,2.93182593,101.19,101.1,7.85215409]
[1770150879766,10.78398002,101.18,101.12,10.70820153]
[1770150879964,2.93182593,101.19,101.14,7.85215409]
[1770150880182,10.78398002,101.19,101.13,10.70820153]
[1770150880374,10.78398002,101.18,101.12,7.85215409]
[1770150880779,2.93182593,101.18,101.13,7.85215409]
[1770150880976,10.78398002,101.18,101.13,7.85215409]
[1770150881187,10.78398002,101.18,101.12,2.85604744]
[1770150881188,2.93182593,101.18,101.14,7.85215409]
[1770150881570,2.93182593,101.18,101.13,7.85215409]
[1770150881866,2.93182593,101.15,101.1,10.70820153]
[1770150882085,10.78398002,101.17,101.12,7.85215409]
[1770150882391,10.78398002,101.17,101.12,10.70820153]
[1770150882587,2.93182593,101.17,101.14,7.85215409]
[1770150882794,10.78398002,101.18,101.13,7.85215409]
[1770150883193,7.85215409,101.17,101.12,10.70820153]
[1770150883395,10.78398002,101.17,101.1,2.85604744]
[1770150883579,2.93182593,101.15,101.1,10.70820153]
[1770150883981,7.85215409,101.14,101.09,7.85215409]
[1770150884309,7.85215409,101.14,101.09,10.70820153]
[1770150884800,10.78398002,101.15,101.1,7.85215409]
[1770150885272,10.78398002,101.19,101.14,7.85215409]
[1770150885469,2.93182593,101.18,101.14,7.85215409]
[1770150885770,10.78398002,101.15,101.09,2.85604744]
[1770150885995,10.78398002,101.15,101.09,10.70820153]
[1770150885996,7.85215409,101.14,101.09,10.70820153]
[1770150886292,10.78398002,101.12,101.07,2.85604744]
[1770150886477,7.85215409,101.1,101.05,2.85604744]
[1770150886673,2.93182593,101.11,101.05,2.85604744]
[1770150886674,7.85215409,101.09,101.05,2.85604744]
[1770150886879,2.93182593,101.1,101.03,2.85604744]
[1770150887098,7.85215409,101.09,101.04,10.70820153]
[1770150887395,10.78398002,101.1,101.05,7.85215409]
[1770150887596,2.93182593,101.1,101.05,10.70820153]
[1770150887896,10.78398002,101.09,101.03,2.85604744]
[1770150888088,10.78398002,101.09,101.03,10.70820153]
[1770150888089,7.85215409,101.08,101.03,10.70820153]
[1770150888700,10.78398002,101.08,101.03,2.85604744]
[1770150888873,2.93182593,101.18,101.08,2.85604744]
[1770150889195,7.85215409,101.2,101.08,7.85215409]
[1770150889196,2.93182593,101.13,101.08,7.85215409]
[1770150889395,2.93182593,101.12,101.08,7.85215409]
[1770150890016,10.78398002,101.14,101.08,10.70820153]
[1770150890305,2.93182593,101.14,101.1,7.85215409]
[1770150890505,2.93182593,101.14,101.1,7.82349743]
[1770150891089,2.93182593,101.14,101.08,2.85604744]
[1770150891293,2.80670581,101.13,101.09,7.82349743]
[1770150891508,2.80670581,101.13,101.08,2.85604744]
[1770150891827,2.80670581,101.13,101.09,7.82349743]
[1770150892682,10.63020324,101.15,101.1,7.82349743]
[1770150893094,2.80670581,101.15,101.09,2.75648112]
[1770150893284,2.80670581,101.14,101.09,10.57997855]
[1770150893494,2.80670581,101.14,101.1,7.82349743]
[1770150893693,2.80670581,101.13,101.08,7.82349743]
[1770150893902,2.80670581,101.13,101.08,10.57997855]
[1770150894277,2.80670581,101.16,101.09,12.6480848]
[1770150894489,2.80670581,101.14,101.09,10.57997855]
[1770150894690,10.51390456,101.13,101.08,7.82349743]
[1770150895196,10.51390456,101.13,101.08,2.63103322]
[1770150895398,10.51390456,101.13,101.03,24.74338113]
[1770150895399,10.51390456,101.13,101.07,10.45453065]
[1770150895585,2.69040713,101.13,101.08,7.82349743]
[1770150895991,10.51390456,101.13,101.08,7.82349743]
[1770150896389,7.82349743,101.11,101.07,2.63103322]
[1770150896603,10.51390456,101.09,101.04,7.82349743]
[1770150896816,10.51390456,101.09,101.03,37.95453065]
[1770150896989,10.51390456,101.09,101.04,10.45453065]
[1770150897625,2.69040713,101.15,101.05,2.63103322]
[1770150897928,10.51390456,101.1,101.05,7.82349743]
[1770150898285,89.08423849,101.19,101.04,12.52798416]
[1770150898286,2.69040713,101.12,101.08,7.82349743]
[1770150898485,2.69040713,101.12,101.09,7.82349743]
[1770150898707,10.51390456,101.13,101.08,7.82349743]
[1770150899018,10.51390456,101.12,101.07,2.63103322]
[1770150899329,10.51390456,101.1,101.05,10.45453065]
[1770150899495,2.69040713,101.1,101.06,7.82349743]
[1770150899810,2.69040713,101.1,101.07,7.82349743]
[1770150900515,2.69040713,101.08,101.02,2.63103322]
[1770150900721,10.51390456,101.07,101.02,2.63103322]
[1770150901093,2.69040713,101.13,101.05,7.82349743]
[1770150901307,2.69040713,101.11,101.07,7.82349743]
[1770150901515,9.88826263,101.13,101.04,2.63103322]
[1770150901516,2.69040713,101.13,101.05,2.63103322]
[1770150901808,2.69040713,101.12,101.1,7.82349743]
[1770150902011,2.69040713,101.15,101.08,2.63103322]
[1770150902211,2.69040713,101.14,101.06,2.63103322]
[1770150902397,10.51390456,101.11,101.05,2.63103322]
[1770150902590,2.69040713,101.07,101.02,2.63103322]
[1770150902815,2.69040713,101.09,101.04,7.82349743]
[1770150903007,2.69040713,101.09,101.05,7.82349743]
[1770150903513,10.51390456,101.11,101.03,2.63103322]
[1770150903703,2.69040713,101.1,101.03,2.63103322]
[1770150904017,2.69040713,101.07,101.03,7.82349743]
[1770150904317,10.51390456,101.05,100.99,2.63103322]
[1770150904508,5.36086188,101.11,100.95,2.63103322]
[1770150904509,2.69040713,101.01,100.95,2.63103322]
[1770150904686,2.69040713,101.01,100.96,7.82349743]
[1770150904687,10.51390456,101.01,100.96,7.82349743]
[1770150905114,10.51390456,101.01,100.94,37.40623646]
[1770150905115,2.69040713,101.03,100.99,7.82349743]
[1770150905314,2.69040713,101.03,101.0,7.82349743]
[1770150905505,2.69040713,101.03,100.96,10.45453065]
[1770150905708,2.69040713,101.01,100.94,2.63103322]
[1770150905909,2.69040713,100.98,100.94,7.82349743]
[1770150906099,2.69040713,100.97,100.93,7.82349743]
[1770150906293,2.69040713,101.01,100.96,10.45453065]
[1770150906614,2.69040713,101.03,101.0,7.82349743]
[1770150906845,2.69040713,101.02,100.94,2.63103322]
[1770150907115,2.69040713,101.01,100.97,7.82349743]
[1770150907299,5.36086188,101.05,100.92,0.2]
[1770150907300,2.69040713,100.97,100.92,0.2]
[1770150907499,10.51390456,100.96,100.92,0.2]
[1770150907703,2.69040713,100.92,100.89,0.2]
[1770150908099,2.69040713,100.92,100.89,8.02349743]
[1770150908295,2.69040713,100.92,100.87,2.63103322]
[1770150908610,2.69040713,100.93,100.89,7.82349743]
[1770150908816,2.69040713,100.95,100.91,7.82349743]
[1770150908998,2.69040713,100.94,100.9,7.82349743]
[1770150909519,10.54134956,101.0,100.93,7.82349743]
[1770150909520,2.69040713,100.99,100.93,7.82349743]
[1770150909695,2.69040713,100.99,100.95,2.61588432]
[1770150909900,17.72504118,101.0,100.9,2.73175959]
[1770150909901,7.82349743,100.96,100.9,2.73175959]
[1770150910120,7.82349743,100.97,100.92,7.82349743]
[1770150910296,7.82349743,100.96,100.92,7.82349743]
[1770150910497,7.82349743,100.96,100.91,7.82349743]
[1770150910999,7.82349743,100.95,100.9,10.55525702]
[1770150911218,56.68289826,101.03,100.94,7.82349743]
[1770150911219,15.07708941,101.03,100.94,7.82349743]
[1770150911511,5.17897879,101.03,100.99,7.82349743]
[1770150911713,24.7386864,101.06,100.91,34.68427572]
[1770150911714,7.82349743,101.06,101.01,7.82349743]
[1770150911927,5.17625327,101.08,101.02,7.82349743]
[1770150912119,5.17625327,101.08,100.99,2.73175959]
[1770150912120,5.17625327,101.08,101.07,7.82349743]
[1770150912294,34.59875035,101.16,101.05,2.73175959]
[1770150912494,7.82349743,101.11,101.03,2.73175959]
[1770150912712,9.88826263,101.13,101.06,7.82349743]
[1770150912915,7.82349743,101.11,101.06,7.82349743]
[1770150913100,7.82349743,101.08,101.03,7.82349743]
[1770150913291,7.82349743,101.07,101.02,2.73175959]
[1770150913495,7.82349743,101.04,101.0,2.73175959]
[1770150913693,7.82349743,101.03,100.98,10.55525702]
[1770150913990,5.36086188,101.1,100.98,10.55525702]
[1770150914349,7.82349743,101.06,101.01,7.82349743]
[1770150914497,7.82349743,101.04,101.0,10.55525702]
[1770150914821,5.36086188,101.09,100.98,2.73175959]
[1770150914822,7.82349743,101.03,100.98,2.73175959]
[1770150915017,7.82349743,101.02,100.98,2.73175959]
[1770150915200,9.89511181,101.06,100.98,10.55525702]
[1770150915395,15.25303716,101.09,101.0,7.82349743]
[1770150915611,7.82349743,101.06,101.01,7.82349743]
[1770150915828,2.65219651,101.14,101.03,2.63103322]
[1770150916320,2.65219651,101.14,101.03,1.47682268]
[1770150916699,7.82349743,101.1,101.05,7.82349743]
[1770150917019,7.82349743,101.1,101.06,7.82349743]
[1770150917228,7.82349743,101.1,101.05,7.82349743]
[1770150917428,7.82349743,101.1,101.02,9.89897056]
[1770150917599,10.51390456,101.1,101.05,7.82349743]
[1770150917918,2.69040713,101.1,101.06,7.82349743]
[1770150918121,2.69040713,101.1,100.99,39.60773303]
[1770150918122,10.51390456,101.1,101.05,7.82349743]
[1770150918306,10.51390456,101.09,101.04,7.82349743]
[1770150918823,2.69040713,101.08,101.01,7.82349743]
[1770150919009,2.69040713,101.08,101.0,2.63103322]
[1770150919010,2.69040713,101.14,101.07,7.82349743]
[1770150919338,10.51390456,101.11,101.04,2.63103322]
[1770150919619,5.36086188,101.13,101.04,2.63103322]
[1770150919819,2.69040713,101.17,101.12,7.82349743]
[1770150919996,10.51390456,101.19,101.11,2.63103322]
[1770150920199,2.69040713,101.19,101.16,7.82349743]
[1770150920398,2.69040713,101.19,101.13,2.63103322]
[1770150920616,2.69040713,101.19,101.15,7.82349743]
[1770150920827,10.51390456,101.19,101.14,7.82349743]
[1770150921026,2.69040713,101.19,101.14,7.82349743]
[1770150921206,2.49244075,101.21,101.16,7.82349743]
[1770150921419,10.31593818,101.21,101.16,7.82349743]
[1770150921734,10.31593818,101.18,101.13,7.82349743]
[1770150921898,10.31593818,101.18,101.11,2.36481055]
[1770150921899,10.31593818,101.18,101.14,7.82349743]
[1770150922102,10.31593818,101.2,101.15,7.82349743]
[1770150922316,10.31593818,101.22,101.18,7.82349743]
[1770150922505,7.82349743,101.21,101.16,7.82349743]
[1770150922702,7.82349743,101.19,101.15,2.36481055]
[1770150923020,7.82349743,101.17,101.12,7.82349743]
[1770150923220,2.49244075,101.18,101.13,7.82349743]
[1770150923526,7.82349743,101.16,101.11,7.82349743]
[1770150923818,10.31593818,101.13,101.08,7.82349743]
[1770150924018,10.31593818,101.13,101.07,2.36481055]
[1770150924201,7.82349743,101.14,101.1,7.82349743]
[1770150924402,10.31593818,101.15,101.1,7.82349743]
[1770150924612,10.31593818,101.17,101.12,7.82349743]
[1770150924820,2.49244075,101.17,101.12,7.82349743]
[1770150925128,7.82349743,101.15,101.1,2.36481055]
[1770150925432,7.82349743,101.2,101.04,2.36481055]
[1770150925433,10.31593818,101.11,101.04,2.36481055]
[1770150925635,7.82349743,101.09,101.05,10.18830798]
[1770150925839,7.82349743,101.1,101.05,10.18830798]
[1770150926015,7.82349743,101.11,101.06,7.82349743]
[1770150926335,7.82349743,101.1,101.05,10.18830798]
[1770150926520,7.82349743,101.1,101.04,2.36481055]
[1770150926727,7.82349743,101.08,101.03,7.82349743]
[1770150926920,10.31593818,101.12,101.07,7.82349743]
[1770150927119,7.82349743,101.13,101.07,2.36481055]
[1770150927430,7.82349743,101.11,101.07,2.36481055]
[1770150927640,7.82349743,101.1,101.06,7.82349743]
[1770150927837,7.82349743,101.11,101.06,7.82349743]
[1770150928014,2.49244075,101.11,101.05,2.36481055]
[1770150928219,7.82349743,101.08,101.03,10.18830798]
[1770150928417,7.82349743,101.07,101.02,7.82349743]
[1770150928935,7.82349743,101.07,101.03,7.82349743]
[1770150929237,7.82349743,101.06,101.02,10.18830798]
[1770150929535,7.82349743,101.06,101.02,2.36481055]
[1770150929734,2.49244075,101.08,101.0,2.36481055]
[1770150929735,7.82349743,101.04,101.0,2.36481055]
[1770150929927,7.82349743,101.03,100.98,10.18830798]
[1770150930114,10.31593818,101.05,101.0,7.82349743]
[1770150930316,7.82349743,101.05,100.99,2.36481055]
[1770150930530,7.82349743,101.04,101.0,7.82349743]
[1770150930718,7.82349743,101.04,100.99,10.18830798]
[1770150930934,7.82349743,101.03,100.99,7.82349743]
[1770150931132,2.49244075,101.04,100.98,7.82349743]
[1770150931334,2.49244075,101.17,101.04,2.36481055]
[1770150931634,2.49244075,101.17,101.03,15.64699486]
[1770150931635,2.49244075,101.14,101.07,2.36481055]
[1770150931848,7.82349743,101.12,101.07,7.82349743]
[1770150932035,2.49244075,101.1,101.05,7.82349743]
[1770150932238,10.31593818,101.1,101.05,7.82349743]
[1770150932618,2.49244075,101.1,101.05,7.82349743]
[1770150932838,7.82349743,101.09,101.04,10.18830798]
[1770150933035,7.82349743,101.09,101.04,2.36481055]
[1770150933236,7.82349743,101.07,101.02,2.36481055]
[1770150933431,7.82349743,101.08,101.03,7.82349743]
[1770150933628,10.31593818,101.09,101.04,7.82349743]
[1770150933943,2.49244075,101.11,101.06,7.82349743]
[1770150934129,10.31593818,101.11,101.06,7.82349743]
[1770150934443,7.82349743,101.08,101.04,7.82349743]
[1770150934637,2.49244075,101.09,101.02,2.36481055]
[1770150934939,10.31593818,101.09,101.04,7.82349743]
[1770150935142,2.49244075,101.09,101.05,7.82349743]
[1770150935356,24.69944312,101.22,101.09,2.36481055]
[1770150935520,7.66431645,101.19,101.12,10.18830798]
[1770150935720,2.49244075,101.19,101.15,7.82349743]
[1770150935924,2.49244075,101.18,101.14,7.82349743]
[1770150936131,10.31593818,101.18,101.13,7.82349743]
[1770150936333,2.49244075,101.2,101.12,2.36481055]
[1770150936529,10.31593818,101.19,101.14,7.82349743]
[1770150936747,7.82349743,101.2,101.16,7.82349743]
[1770150937049,10.31593818,101.2,101.15,7.82349743]
[1770150937342,10.31593818,101.2,101.14,2.36481055]
[1770150937343,2.49244075,101.22,101.16,7.82349743]
[1770150937531,10.31593818,101.22,101.15,2.36481055]
[1770150937732,10.31593818,101.22,101.17,7.82349743]
[1770150938123,9.97884168,101.23,101.11,2.36481055]
[1770150938124,10.31593818,101.17,101.11,2.36481055]
[1770150938318,7.82349743,101.16,101.11,2.36481055]
[1770150938523,7.82349743,101.14,101.09,10.18830798]
[1770150938745,7.82349743,101.15,101.1,7.82349743]